fUSD/lending_fUSD_20240119
["ID","MTS","AMOUNT","RATE_DAILY","PERIOD"]
[312224085,1705693885085,-500.0,0.00027671,2]
[312224086,1705693885095,-1081.81,0.00027671,2]
[312224087,1705693885104,-500.0,0.00027671,2]
[312224088,1705693885114,-2414.03,0.00027671,2]
[312224089,1705693885123,-1049.52,0.00027671,2]
[312224090,1705693885132,-3012.69,0.00027671,2]
[312224091,1705693885141,-1539.41,0.00027671,2]
[312224092,1705693885151,-500.0,0.00027671,2]
[312224093,1705693885160,-1065.08,0.00027671,2]
[312224094,1705693885169,-500.0,0.00027671,2]
[312224095,1705693885179,-726.75,0.00027671,2]
[312224096,1705693885188,-2998.92,0.00027671,2]
[312224097,1705693885197,-2705.22,0.00027671,2]
[312224098,1705693885207,-1147.13,0.00027671,2]
[312224099,1705693885216,-535.7680001,0.00027671,2]
[312224100,1705693885227,-1279.96,0.00027671,2]
[312224101,1705693885236,-549.26,0.00027671,2]
[312224102,1705693885245,-500.0,0.00027671,2]
[312224103,1705693885255,-892.38,0.00027671,2]
[312224104,1705693885265,-575.11,0.00027671,2]
[312224105,1705693885275,-970.57,0.00027671,2]
[312224106,1705693885284,-1314.31,0.00027671,2]
[312224107,1705693885293,-665.66,0.00027671,2]
[312224108,1705693885305,-1312.06,0.00027671,2]
[312224109,1705693885317,-1440.41,0.00027671,2]
[312224110,1705693885327,-500.0,0.00027671,2]
[312224111,1705693885337,-500.0,0.00027671,2]
[312224112,1705693885348,-399.77,0.00027671,2]
[312224113,1705693885368,-500.0,0.00027671,2]
[312224114,1705693885378,-801.63,0.00027671,2]
[312224115,1705693885388,-1364.63,0.00027671,2]
[312224116,1705693885399,-1869.93,0.00027671,2]
[312224117,1705693885408,-665.4,0.00027671,2]
[312224118,1705693885418,-500.0,0.00027671,2]
[312224119,1705693885428,-849.71,0.00027671,2]
[312224120,1705693885438,-500.0,0.00027671,2]
[312224121,1705693885448,-2620.86,0.00027671,2]
[312224122,1705693885457,-637.71,0.00027671,2]
[312224123,1705693885467,-1448.26,0.00027671,2]
[312224124,1705693885477,-4987.45,0.00027671,2]
[312224125,1705693885486,-531.02,0.00027671,2]
[312224126,1705693885496,-500.0,0.00027671,2]
[312224127,1705693885505,-1552.1,0.00027671,2]
[312224128,1705693885514,-803.95,0.00027671,2]
[312224129,1705693885523,-500.0,0.00027671,2]
[312224130,1705693885533,-500.0,0.00027671,2]
[312224131,1705693885543,-896.77,0.00027671,2]
[312224132,1705693885554,-650.24,0.00027671,2]
[312224133,1705693885564,-500.0,0.00027671,2]
[312224134,1705693885574,-722.38,0.00027671,2]
[312224135,1705693885584,-568.74,0.00027671,2]
[312224136,1705693885594,-500.0,0.00027671,2]
[312224137,1705693885603,-780.36,0.00027671,2]
[312224138,1705693885613,-500.0,0.00027671,2]
[312224139,1705693885625,-793.35,0.00027671,2]
[312224140,1705693885635,-1671.21,0.00027671,2]
[312224141,1705693885644,-799.48,0.00027671,2]
[312224142,1705693885654,-934.16,0.00027671,2]
[312224143,1705693885663,-2127.17,0.00027671,2]
[312224144,1705693885673,-1066.92,0.00027671,2]
[312224145,1705693885682,-1404.62,0.00027671,2]
[312224146,1705693885692,-500.0,0.00027671,2]
[312224147,1705693885702,-557.49,0.00027671,2]
[312224148,1705693885711,-1384.57,0.00027671,2]
[312224149,1705693885721,-2093.33,0.00027671,2]
[312224150,1705693885730,-1299.85,0.00027671,2]
[312224151,1705693885740,-500.0,0.00027671,2]
[312224152,1705693885750,-500.0,0.00027671,2]
[312224153,1705693885759,-150.0,0.00027694,7]
[312224154,1705693885769,-181.0,0.00027698,2]
[312224155,1705693885779,-150.0,0.0002773,7]
[312224156,1705693885789,-150.0,0.00027765,7]
[312224157,1705693885798,-160.0,0.000278,2]
[312224158,1705693885808,-150.0,0.00027801,7]
[312224159,1705693885818,-500.0,0.00027834,7]
[312224160,1705693885827,-150.0,0.00027837,7]
[312224161,1705693885837,-150.0,0.00027872,7]
[312224162,1705693885847,-165.93960689,0.00027884,2]
[312224163,1705693885857,-800.0,0.000279,10]
[312224164,1705693885867,-150.0,0.00027908,7]
[312224165,1705693885876,-500.0,0.0002793,2]
[312224166,1705693885885,-500.0,0.00027938,2]
[312224167,1705693885895,-150.0,0.00027943,7]
[312224168,1705693885904,-500.0,0.00027945,2]
[312224169,1705693885913,-500.0,0.00027945,2]
[312224170,1705693885923,-2365.35,0.00027945,2]
[312224171,1705693885932,-500.0,0.00027945,2]
[312224172,1705693885941,-500.0,0.00027945,2]
[312224173,1705693885950,-506.13,0.00027945,2]
[312224174,1705693885960,-500.0,0.00027945,2]
[312224175,1705693885969,-631.830001,0.00027945,2]
[312224176,1705693885979,-928.77,0.00027945,2]
[312224177,1705693885990,-471.44721919,0.00027945,2]
[312224178,1705693885999,-500.0,0.00027945,2]
[312224179,1705693886009,-1861.12,0.00027945,2]
[312224180,1705693886019,-917.31,0.00027945,2]
[312224181,1705693886028,-1764.9,0.00027945,2]
[312224182,1705693886038,-521.62,0.00027945,2]
[312224183,1705693886048,-1130.94,0.00027945,2]
[312224184,1705693886057,-1550.69,0.00027945,2]
[312224185,1705693886067,-623.05,0.00027945,2]
[312224186,1705693886077,-500.0,0.00027945,2]
[312224187,1705693886086,-771.68,0.00027945,2]
[312224188,1705693886095,-503.49,0.00027945,2]
[312224189,1705693886105,-1084.24,0.00027945,2]
[312224190,1705693886114,-1823.68,0.00027945,2]
[312224191,1705693886123,-3335.07,0.00027945,2]
[312224192,1705693886133,-1731.4,0.00027945,2]
[312224193,1705693886143,-2037.15,0.00027945,2]
[312224194,1705693886152,-2037.79,0.00027945,2]
[312224195,1705693886162,-500.0,0.00027945,2]
[312224196,1705693886171,-1807.75,0.00027945,2]
[312224197,1705693886181,-680.7,0.00027945,2]
[312224198,1705693886190,-1014.02,0.00027945,2]
[312224199,1705693886200,-1949.96,0.00027945,2]
[312224200,1705693886210,-500.0,0.00027945,2]
[312224201,1705693886219,-659.73,0.00027945,2]
[312224202,1705693886229,-809.52,0.00027945,2]
[312224203,1705693886238,-3033.49,0.00027945,2]
[312224204,1705693886248,-1580.72,0.00027945,2]
[312224205,1705693886258,-2228.23,0.00027945,2]
[312224206,1705693886268,-2403.96,0.00027945,2]
[312224207,1705693886277,-715.15,0.00027945,2]
[312224208,1705693886287,-1528.36,0.00027945,2]
[312224209,1705693886298,-707.27,0.00027945,2]
[312224210,1705693886310,-839.61,0.00027945,2]
[312224211,1705693886319,-1399.25,0.00027945,2]
[312224212,1705693886328,-530.2,0.00027945,2]
[312224213,1705693886338,-500.0,0.00027945,2]
[312224214,1705693886349,-500.0,0.00027945,2]
[312224215,1705693886359,-702.87,0.00027945,2]
[312224216,1705693886369,-1669.84,0.00027945,2]
[312224217,1705693886379,-500.0,0.00027945,2]
[312224218,1705693886389,-633.49,0.00027945,2]
[312224219,1705693886399,-3055.09,0.00027945,2]
[312224220,1705693886409,-4886.42,0.00027945,2]
[312224221,1705693886419,-500.0,0.00027945,2]
[312224222,1705693886429,-500.0,0.00027945,2]
[312224223,1705693886439,-1081.81,0.00027945,2]
[312224224,1705693886449,-2414.03,0.00027945,2]
[312224225,1705693886459,-3012.69,0.00027945,2]
[312224226,1705693886468,-1049.52,0.00027945,2]
[312224227,1705693886478,-1539.41,0.00027945,2]
[312224228,1705693886489,-500.0,0.00027945,2]
[312224229,1705693886499,-1065.08,0.00027945,2]
[312224230,1705693886509,-500.0,0.00027945,2]
[312224231,1705693886519,-726.75,0.00027945,2]
[312224232,1705693886529,-2998.92,0.00027945,2]
[312224233,1705693886538,-2705.22,0.00027945,2]
[312224234,1705693886549,-1147.13,0.00027945,2]
[312224235,1705693886559,-1279.96,0.00027945,2]
[312224236,1705693886568,-549.26,0.00027945,2]
[312224237,1705693886577,-500.0,0.00027945,2]
[312224238,1705693886587,-892.38,0.00027945,2]
[312224239,1705693886597,-575.11,0.00027945,2]
[312224240,1705693886606,-970.57,0.00027945,2]
[312224241,1705693886616,-1314.31,0.00027945,2]
[312224242,1705693886627,-665.66,0.00027945,2]
[312224243,1705693886636,-1312.06,0.00027945,2]
[312224244,1705693886645,-1440.41,0.00027945,2]
[312224245,1705693886655,-500.0,0.00027945,2]
[312224246,1705693886665,-500.0,0.00027945,2]
[312224247,1705693886675,-500.0,0.00027945,2]
[312224248,1705693886684,-801.63,0.00027945,2]
[312224249,1705693886694,-1364.63,0.00027945,2]
[312224250,1705693886704,-1869.93,0.00027945,2]
[312224251,1705693886713,-665.4,0.00027945,2]
[312224252,1705693886723,-500.0,0.00027945,2]
[312224253,1705693886732,-849.71,0.00027945,2]
[312224254,1705693886741,-500.0,0.00027945,2]
[312224255,1705693886751,-2620.86,0.00027945,2]
[312224256,1705693886760,-637.71,0.00027945,2]
[312224257,1705693886770,-1448.26,0.00027945,2]
[312224258,1705693886779,-4987.45,0.00027945,2]
[312224259,1705693886789,-531.02,0.00027945,2]
[312224260,1705693886799,-500.0,0.00027945,2]
[312224261,1705693886809,-1552.1,0.00027945,2]
[312224262,1705693886818,-803.95,0.00027945,2]
[312224263,1705693886827,-500.0,0.00027945,2]
[312224264,1705693886837,-896.77,0.00027945,2]
[312224265,1705693886846,-500.0,0.00027945,2]
[312224266,1705693886856,-650.24,0.00027945,2]
[312224267,1705693886865,-500.0,0.00027945,2]
[312224268,1705693886875,-722.38,0.00027945,2]
[312224269,1705693886885,-568.74,0.00027945,2]
[312224270,1705693886894,-500.0,0.00027945,2]
[312224271,1705693886904,-780.36,0.00027945,2]
[312224272,1705693886913,-500.0,0.00027945,2]
[312224273,1705693886923,-793.35,0.00027945,2]
[312224274,1705693886933,-1671.21,0.00027945,2]
[312224275,1705693886942,-799.48,0.00027945,2]
[312224276,1705693886952,-934.16,0.00027945,2]
[312224277,1705693886961,-2127.17,0.00027945,2]
[312224278,1705693886971,-1066.92,0.00027945,2]
[312224279,1705693886981,-1404.62,0.00027945,2]
[312224280,1705693886990,-294.96876237,0.00027945,2]
[312224281,1705693887000,-557.49,0.00027945,2]
[312224282,1705693887010,-1384.57,0.00027945,2]
[312224283,1705693887019,-2093.33,0.00027945,2]
[312224284,1705693887028,-1299.85,0.00027945,2]
[312224285,1705693887039,-500.0,0.00027945,2]
[312224286,1705693887049,-500.0,0.00027945,2]
[312224287,1705693887059,-500.0,0.00027947,2]
[312224288,1705693887067,-519.63,0.00027949,2]
[312224289,1705693887077,-5208.80771255,0.00027953,2]
[312224290,1705693887085,-500.0,0.00027956,2]
[312224291,1705693887095,-150.0,0.00027979,7]
[312224292,1705693887104,-688.92857397,0.00028,2]
[312224293,1705693887114,-389.81086669,0.00028,2]
[312224294,1705693887124,-28194.72773081,0.00028,2]
[312224295,1705693887134,-200.0,0.00028,2]
[312224296,1705693887145,-150.0,0.00028014,7]
[312224297,1705693887154,-480.37,0.0002803,2]
[312224298,1705693887164,-150.0,0.0002805,7]
[312224299,1705693887174,-150.0,0.00028085,7]
[312224300,1705693887183,-165.93960689,0.00028098,2]
[312224301,1705693887193,-150.0,0.00028121,7]
[312224302,1705693887202,-1896.15842977,0.00028134,4]
[312224303,1705693887212,-150.0,0.00028157,7]
[312224304,1705693887222,-150.0,0.00028192,7]
[312224305,1705693887232,-500.0,0.00028219,2]
[312224306,1705693887241,-403.94996835,0.00028219,2]
[312224307,1705693887251,-2365.35,0.00028219,2]
[312224308,1705693887261,-500.0,0.00028219,2]
[312224309,1705693887270,-500.0,0.00028219,2]
[312224310,1705693887280,-506.13,0.00028219,2]
[312224311,1705693887290,-500.0,0.00028219,2]
[312224312,1705693887302,-928.77,0.00028219,2]
[312224313,1705693887312,-604.0,0.00028219,2]
[312224314,1705693887330,-1861.12,0.00028219,2]
[312224315,1705693887340,-917.31,0.00028219,2]
[312224316,1705693887350,-1764.9,0.00028219,2]
[312224317,1705693887364,-521.62,0.00028219,2]
[312224318,1705693887373,-1130.94,0.00028219,2]
[312224319,1705693887384,-1550.69,0.00028219,2]
[312224320,1705693887396,-623.05,0.00028219,2]
[312224321,1705693887407,-771.68,0.00028219,2]
[312224322,1705693887417,-500.0,0.00028219,2]
[312224323,1705693887426,-503.49,0.00028219,2]
[312224324,1705693887436,-1084.24,0.00028219,2]
[312224325,1705693887446,-1823.68,0.00028219,2]
[312224326,1705693887456,-3335.07,0.00028219,2]
[312224327,1705693887467,-1731.4,0.00028219,2]
[312224328,1705693887477,-2037.15,0.00028219,2]
[312224329,1705693887488,-500.0,0.00028219,2]
[312224330,1705693887498,-2037.79,0.00028219,2]
[312224331,1705693887508,-1807.75,0.00028219,2]
[312224332,1705693887517,-680.7,0.00028219,2]
[312224333,1705693887528,-1014.02,0.00028219,2]
[312224334,1705693887537,-1949.96,0.00028219,2]
[312224335,1705693887547,-500.0,0.00028219,2]
[312224336,1705693887558,-659.73,0.00028219,2]
[312224337,1705693887567,-809.52,0.00028219,2]
[312224338,1705693887577,-3033.49,0.00028219,2]
[312224339,1705693887586,-1580.72,0.00028219,2]
[312224340,1705693887596,-2228.23,0.00028219,2]
[312224341,1705693887605,-2403.96,0.00028219,2]
[312224342,1705693887615,-715.15,0.00028219,2]
[312224343,1705693887628,-1528.36,0.00028219,2]
[312224344,1705693887637,-707.27,0.00028219,2]
[312224345,1705693887647,-839.61,0.00028219,2]
[312224346,1705693887657,-1399.25,0.00028219,2]
[312224347,1705693887667,-530.2,0.00028219,2]
[312224348,1705693887677,-500.0,0.00028219,2]
[312224349,1705693887687,-500.0,0.00028219,2]
[312224350,1705693887696,-702.87,0.00028219,2]
[312224351,1705693887706,-1669.84,0.00028219,2]
[312224352,1705693887716,-500.0,0.00028219,2]
[312224353,1705693887726,-633.49,0.00028219,2]
[312224354,1705693887736,-3055.09,0.00028219,2]
[312224355,1705693887746,-4886.42,0.00028219,2]
[312224356,1705693887756,-191.65828518,0.00028219,2]
[312224357,1705693887765,-500.0,0.00028219,2]
[312224358,1705693887776,-1081.81,0.00028219,2]
[312224359,1705693887785,-2414.03,0.00028219,2]
[312224360,1705693887796,-3012.69,0.00028219,2]
[312224361,1705693887810,-1049.52,0.00028219,2]
[312224362,1705693887821,-1539.41,0.00028219,2]
[312224363,1705693887832,-500.0,0.00028219,2]
[312224364,1705693887843,-1065.08,0.00028219,2]
[312224365,1705693887854,-500.0,0.00028219,2]
[312224366,1705693887864,-726.75,0.00028219,2]
[312224367,1705693887875,-2998.92,0.00028219,2]
[312224368,1705693887885,-2705.22,0.00028219,2]
[312224369,1705693887895,-1147.13,0.00028219,2]
[312224370,1705693887906,-1279.96,0.00028219,2]
[312224371,1705693887915,-549.26,0.00028219,2]
[312224372,1705693887926,-500.0,0.00028219,2]
[312224373,1705693887936,-892.38,0.00028219,2]
[312224374,1705693887946,-575.11,0.00028219,2]
[312224375,1705693887956,-970.57,0.00028219,2]
[312224376,1705693887967,-1314.31,0.00028219,2]
[312224377,1705693887976,-665.66,0.00028219,2]
[312224378,1705693887987,-1312.06,0.00028219,2]
[312224379,1705693887998,-1440.41,0.00028219,2]
[312224380,1705693888009,-500.0,0.00028219,2]
[312224381,1705693888019,-500.0,0.00028219,2]
[312224382,1705693888031,-200.23,0.00028219,2]
[312224383,1705693888041,-801.63,0.00028219,2]
[312224384,1705693888056,-1364.63,0.00028219,2]
[312224385,1705693888067,-1869.93,0.00028219,2]
[312224386,1705693888078,-665.4,0.00028219,2]
[312224387,1705693888088,-496.85069914,0.00028219,2]
[312224388,1705693888098,-849.71,0.00028219,2]
[312224389,1705693888108,-500.0,0.00028219,2]
[312224390,1705693888118,-2620.86,0.00028219,2]
[312224391,1705693888128,-637.71,0.00028219,2]
[312224392,1705693888139,-1448.26,0.00028219,2]
[312224393,1705693888149,-4987.45,0.00028219,2]
[312224394,1705693888160,-531.02,0.00028219,2]
[312224395,1705693888170,-500.0,0.00028219,2]
[312224396,1705693888180,-1552.1,0.00028219,2]
[312224397,1705693888190,-803.95,0.00028219,2]
[312224398,1705693888201,-500.0,0.00028219,2]
[312224399,1705693888211,-500.0,0.00028219,2]
[312224400,1705693888221,-896.77,0.00028219,2]
[312224401,1705693888231,-650.24,0.00028219,2]
[312224402,1705693888241,-500.0,0.00028219,2]
[312224403,1705693888252,-722.38,0.00028219,2]
[312224404,1705693888263,-568.74,0.00028219,2]
[312224405,1705693888274,-618.42,0.00028219,2]
[312224406,1705693888283,-780.36,0.00028219,2]
[312224407,1705693888294,-500.0,0.00028219,2]
[312224408,1705693888310,-793.35,0.00028219,2]
[312224409,1705693888325,-1671.21,0.00028219,2]
[312224410,1705693888335,-799.48,0.00028219,2]
[312224411,1705693888346,-934.16,0.00028219,2]
[312224412,1705693888357,-2127.17,0.00028219,2]
[312224413,1705693888368,-1066.92,0.00028219,2]
[312224414,1705693888378,-1404.62,0.00028219,2]
[312224415,1705693888388,-557.49,0.00028219,2]
[312224416,1705693888399,-1384.57,0.00028219,2]
[312224417,1705693888409,-2093.33,0.00028219,2]
[312224418,1705693888419,-1299.85,0.00028219,2]
[312224419,1705693888429,-500.0,0.00028219,2]
[312224420,1705693888440,-500.0,0.00028219,2]
[312224421,1705693888450,-150.0,0.00028228,7]
[312224422,1705693888460,-596.64,0.0002823,2]
[312224423,1705693888470,-150.0,0.00028263,7]
[312224424,1705693888480,-150.0,0.00028299,7]
[312224425,1705693888490,-167.0,0.00028307,2]
[312224426,1705693888499,-165.93960689,0.00028313,2]
[312224427,1705693888509,-150.0,0.00028334,7]
[312224428,1705693888519,-214.0,0.0002836,2]
[312224429,1705693888529,-426.0,0.0002836,2]
[312224430,1705693888538,-235.0,0.0002836,2]
[312224431,1705693888548,-2274.0,0.0002836,2]
[312224432,1705693888560,-150.0,0.0002837,7]
[312224433,1705693888570,-167.0,0.00028383,2]
[312224434,1705693888580,-150.0,0.00028405,7]
[312224435,1705693888590,-150.0,0.00028441,7]
[312224436,1705693888601,-156.25,0.00028451,2]
[312224437,1705693888611,-150.0,0.00028477,7]
[312224438,1705693888622,-500.0,0.00028493,2]
[312224439,1705693888632,-2365.35,0.00028493,2]
[312224440,1705693888642,-500.0,0.00028493,2]
[312224441,1705693888653,-506.13,0.00028493,2]
[312224442,1705693888663,-500.0,0.00028493,2]
[312224443,1705693888674,-500.0,0.00028493,2]
[312224444,1705693888685,-928.77,0.00028493,2]
[312224445,1705693888695,-1861.12,0.00028493,2]
[312224446,1705693888705,-917.31,0.00028493,2]
[312224447,1705693888715,-1764.9,0.00028493,2]
[312224448,1705693888725,-521.62,0.00028493,2]
[312224449,1705693888735,-1130.94,0.00028493,2]
[312224450,1705693888745,-1550.69,0.00028493,2]
[312224451,1705693888755,-623.05,0.00028493,2]
[312224452,1705693888765,-771.68,0.00028493,2]
[312224453,1705693888776,-500.0,0.00028493,2]
[312224454,1705693888786,-503.49,0.00028493,2]
[312224455,1705693888795,-1084.24,0.00028493,2]
[312224456,1705693888807,-1823.68,0.00028493,2]
[312224457,1705693888818,-3335.07,0.00028493,2]
[312224458,1705693888828,-1731.4,0.00028493,2]
[312224459,1705693888838,-2037.15,0.00028493,2]
[312224460,1705693888848,-598.81537219,0.00028493,2]
[312224461,1705693888858,-2037.79,0.00028493,2]
[312224462,1705693888868,-1807.75,0.00028493,2]
[312224463,1705693888876,-680.7,0.00028493,2]
[312224464,1705693888884,-1014.02,0.00028493,2]
[312224465,1705693888894,-1949.96,0.00028493,2]
[312224466,1705693888905,-500.0,0.00028493,2]
[312224467,1705693888914,-659.73,0.00028493,2]
[312224468,1705693888924,-809.52,0.00028493,2]
[312224469,1705693888934,-3033.49,0.00028493,2]
[312224470,1705693888944,-1580.72,0.00028493,2]
[312224471,1705693888953,-2228.23,0.00028493,2]
[312224472,1705693888963,-2403.96,0.00028493,2]
[312224473,1705693888974,-715.15,0.00028493,2]
[312224474,1705693888984,-1528.36,0.00028493,2]
[312224475,1705693888994,-707.27,0.00028493,2]
[312224476,1705693889004,-839.61,0.00028493,2]
[312224477,1705693889014,-1399.25,0.00028493,2]
[312224478,1705693889024,-530.2,0.00028493,2]
[312224479,1705693889036,-500.0,0.00028493,2]
[312224480,1705693889046,-500.0,0.00028493,2]
[312224481,1705693889058,-702.87,0.00028493,2]
[312224482,1705693889069,-1669.84,0.00028493,2]
[312224483,1705693889079,-500.0,0.00028493,2]
[312224484,1705693889090,-633.49,0.00028493,2]
[312224485,1705693889101,-3055.09,0.00028493,2]
[312224486,1705693889111,-4886.42,0.00028493,2]
[312224487,1705693889121,-500.0,0.00028493,2]
[312224488,1705693889131,-1081.81,0.00028493,2]
[312224489,1705693889141,-2414.03,0.00028493,2]
[312224490,1705693889151,-3012.69,0.00028493,2]
[312224491,1705693889162,-1049.52,0.00028493,2]
[312224492,1705693889172,-1539.41,0.00028493,2]
[312224493,1705693889183,-500.0,0.00028493,2]
[312224494,1705693889193,-1065.08,0.00028493,2]
[312224495,1705693889204,-500.0,0.00028493,2]
[312224496,1705693889214,-726.75,0.00028493,2]
[312224497,1705693889224,-2998.92,0.00028493,2]
[312224498,1705693889234,-2705.22,0.00028493,2]
[312224499,1705693889245,-1147.13,0.00028493,2]
[312224500,1705693889256,-1279.96,0.00028493,2]
[312224501,1705693889266,-549.26,0.00028493,2]
[312224502,1705693889275,-500.0,0.00028493,2]
[312224503,1705693889286,-892.38,0.00028493,2]
[312224504,1705693889297,-575.11,0.00028493,2]
[312224505,1705693889311,-970.57,0.00028493,2]
[312224506,1705693889322,-1314.31,0.00028493,2]
[312224507,1705693889333,-665.66,0.00028493,2]
[312224508,1705693889345,-1312.06,0.00028493,2]
[312224509,1705693889355,-1440.41,0.00028493,2]
[312224510,1705693889366,-500.0,0.00028493,2]
[312224511,1705693889377,-500.0,0.00028493,2]
[312224512,1705693889390,-801.63,0.00028493,2]
[312224513,1705693889402,-1364.63,0.00028493,2]
[312224514,1705693889412,-1869.93,0.00028493,2]
[312224515,1705693889423,-665.4,0.00028493,2]
[312224516,1705693889434,-849.71,0.00028493,2]
[312224517,1705693889444,-500.0,0.00028493,2]
[312224518,1705693889455,-2620.86,0.00028493,2]
[312224519,1705693889465,-637.71,0.00028493,2]
[312224520,1705693889477,-1448.26,0.00028493,2]
[312224521,1705693889488,-4987.45,0.00028493,2]
[312224522,1705693889499,-531.02,0.00028493,2]
[312224523,1705693889510,-500.0,0.00028493,2]
[312224524,1705693889520,-1552.1,0.00028493,2]
[312224525,1705693889531,-803.95,0.00028493,2]
[312224526,1705693889542,-500.0,0.00028493,2]
[312224527,1705693889793,-896.77,0.00028493,2]
[312224528,1705693889819,-500.0,0.00028493,2]
[312224529,1705693889830,-650.24,0.00028493,2]
[312224530,1705693889840,-500.0,0.00028493,2]
[312224531,1705693889851,-722.38,0.00028493,2]
[312224532,1705693889861,-568.74,0.00028493,2]
[312224533,1705693889871,-780.36,0.00028493,2]
[312224534,1705693889882,-500.0,0.00028493,2]
[312224535,1705693889892,-793.35,0.00028493,2]
[312224536,1705693889903,-1671.21,0.00028493,2]
[312224537,1705693889914,-799.48,0.00028493,2]
[312224538,1705693889923,-934.16,0.00028493,2]
[312224539,1705693889934,-2127.17,0.00028493,2]
[312224540,1705693889944,-1066.92,0.00028493,2]
[312224541,1705693889955,-1404.62,0.00028493,2]
[312224542,1705693889965,-557.49,0.00028493,2]
[312224543,1705693889975,-1384.57,0.00028493,2]
[312224544,1705693889985,-2093.33,0.00028493,2]
[312224545,1705693889995,-1299.85,0.00028493,2]
[312224546,1705693890005,-500.0,0.00028493,2]
[312224547,1705693890015,-150.0,0.00028512,7]
[312224548,1705693890025,-165.93960689,0.00028527,2]
[312224549,1705693890035,-150.0,0.00028548,7]
[312224550,1705693890046,-150.0,0.00028583,7]
[312224551,1705693890056,-150.0,0.00028619,7]
[312224552,1705693890067,-150.0,0.00028654,7]
[312224553,1705693890077,-150.0,0.0002869,7]
[312224554,1705693890089,-203.0,0.00028708,10]
[312224555,1705693890099,-150.0,0.00028725,7]
[312224556,1705693890110,-165.93960689,0.00028742,2]
[312224557,1705693890121,-150.0,0.00028761,7]
[312224558,1705693890131,-158.79482041,0.00028766,2]
[312224559,1705693890141,-150.0,0.00028766,2]
[312224560,1705693890152,-500.0,0.00028767,2]
[312224561,1705693890162,-2365.35,0.00028767,2]
[312224562,1705693890172,-500.0,0.00028767,2]
[312224563,1705693890182,-500.0,0.00028767,2]
[312224564,1705693890192,-506.13,0.00028767,2]
[312224565,1705693890202,-398.40852816,0.00028767,2]
[312224566,1705693890213,-928.77,0.00028767,2]
[312224567,1705693890224,-1861.12,0.00028767,2]
[312224568,1705693890234,-917.31,0.00028767,2]
[312224569,1705693890245,-1764.9,0.00028767,2]
[312224570,1705693890255,-521.62,0.00028767,2]
[312224571,1705693890265,-1130.94,0.00028767,2]
[312224572,1705693890276,-1550.69,0.00028767,2]
[312224573,1705693890287,-623.05,0.00028767,2]
[312224574,1705693890299,-771.68,0.00028767,2]
[312224575,1705693890312,-500.0,0.00028767,2]
[312224576,1705693890323,-1250.82,0.00028767,2]
[312224577,1705693890334,-503.49,0.00028767,2]
[312224578,1705693890346,-1084.24,0.00028767,2]
[312224579,1705693890356,-1823.68,0.00028767,2]
[312224580,1705693890366,-3335.07,0.00028767,2]
[312224581,1705693890377,-1731.4,0.00028767,2]
[312224582,1705693890388,-2037.15,0.00028767,2]
[312224583,1705693890399,-2037.79,0.00028767,2]
[312224584,1705693890410,-1807.75,0.00028767,2]